[Event "LEM Sachsen-Anhalt Masters 2024"]
[Site "Merseburg"]
[Date "2024.02.11"]
[Round "7.3"]
[White "Noennig, Jakob"]
[Black "Malek, Daniel"]
[Result "1/2-1/2"]
[ECO "C03"]
[WhiteElo "1789"]
[BlackElo "2307"]
[Annotator "RC"]
[PlyCount "161"]
[EventDate "2024.02.01"]
[EventType "swiss"]
[EventCountry "GER"]
[SourceTitle "playchess.com"]
[Source "ChessBase"]
[SourceQuality "1"]
[TimeControl "40/5400+30:1800+30"]

1. e4 {[%emt 0:00:02]} e6 {[%emt 0:00:05]} 2. d4 {[%emt 0:00:07]} d5 {[%emt 0:00:04]} 3. Nd2 {[%emt 0:00:14]} Be7 {[%emt 0:00:06]} 4. e5 {[%emt 0:00:23]} c5 {[%emt 0:00:06]} 5. c3 {[%emt 0:00:17]} cxd4 {[%emt 0:00:06]} 6. cxd4 {[%emt 0:00:05]} Qb6 {[%emt 0:00:06]} 7. Ndf3 {[%emt 0:01:26]} Bb4+ {[%emt 0:00:08]} 8. Bd2 {[%emt 0:00:12]} Nc6 {[%emt 0:00:09]} 9. Bc3 {[%emt 0:00:30]} Bd7 {[%emt 0:01:19]} 10. Be2 {[%emt 0:17:33]} f6 {[%emt 0:03:41]} 11. Nh3 {[%emt 0:13:28]} fxe5 {[%emt 0:02:32]} 12. dxe5 {[%emt 0:00:52]} Bxc3+ {[%emt 0:03:30]} 13. bxc3 {[%emt 0:00:18]} Qc7 {[%emt 0:00:19]} 14. O-O {[%emt 0:13:48]} Nxe5 {[%emt 0:21:11]} 15. Nxe5 {[%emt 0:05:03]} Qxe5 {[%emt 0:00:09]} 16. Re1 {[%emt 0:01:12]} Qf6 {[%emt 0:09:31]} 17. Bg4 {[%emt 0:27:04]} Ne7 {[%emt 0:05:28]} 18. Qe2 {[%emt 0:02:04]} Nf5 {[%emt 0:02:58]} 19. Nf4 {[%emt 0:04:25]} O-O {[%emt 0:03:01]} 20. Qe5 {[%emt 0:05:36]} Rae8 {[%emt 0:03:02]} 21. Rad1 {[%emt 0:04:31]} g6 {[%emt 0:16:45]} 22. g3 {[%emt 0:00:18]} Kg7 {[%emt 0:01:16]} 23. Nd3 {[%emt 0:01:09]} Qxe5 {[%emt 0:03:00]} 24. Nxe5 {[%emt 0:00:10]} Bc8 {[%emt 0:00:07]} 25. f4 {[%emt 0:01:00]} Kf6 {[%emt 0:00:08]} 26. Bxf5 {[%emt 0:00:36]} Kxf5 {[%emt 0:00:39]} 27. h4 {[%emt 0:00:54]} Kf6 {[%emt 0:02:37]} 28. Rd4 {[%emt 0:00:33]} Re7 {[%emt 0:00:57]} 29. Kf2 {[%emt 0:00:24]} Rc7 {[%emt 0:00:06]} 30. Re3 {[%emt 0:00:41]} Ke7 {[%emt 0:02:21]} 31. Ke2 {[%emt 0:00:23]} Bd7 {[%emt 0:00:42]} 32. Kd2 {[%emt 0:00:22]} Rfc8 {[%emt 0:00:31]} 33. Rb4 {[%emt 0:00:32]} Be8 {[%emt 0:00:57]} 34. Nf3 {[%emt 0:00:45]} Kd6 {[%emt 0:03:47]} 35. Nd4 {[%emt 0:00:27]} Bd7 {[%emt 0:00:41]} 36. a3 {[%emt 0:00:30]} b6 {[%emt 0:00:17]} 37. Kc2 {[%emt 0:00:31]} Rc5 {[%emt 0:03:36]} 38. Kb2 {[%emt 0:00:28]} h6 {[%emt 0:03:45]} 39. Nf3 {[%emt 0:00:29]} Rf8 {[%emt 0:00:44]} 40. Ne5 {[%emt 0:00:35]} Be8 {[%emt 0:01:35]} 41. Nf3 {[%emt 0:03:05]} Bb5 {[%emt 0:08:29]} 42. Nd4 {[%emt 0:03:59]} Bd7 {[%emt 0:00:41]} 43. Nf3 {[%emt 0:02:49]} Rb8 {[%emt 0:01:17]} 44. Rd4 {[%emt 0:08:06]} a5 {[%emt 0:00:23]} 45. Ne5 {[%emt 0:03:04]} Be8 {[%emt 0:02:23]} 46. Nf3 {[%emt 0:05:11]} Bb5 {[%emt 0:01:27]} 47. Ne5 {[%emt 0:00:21]} Be8 {[%emt 0:01:14]} 48. Nf3 {[%emt 0:00:02]} Rb7 {[%emt 0:01:25]} 49. Re5 {[%emt 0:01:09]} Bb5 {[%emt 0:01:53]} 50. Re3 {[%emt 0:02:27]} Bc4 {[%emt 0:03:39]} 51. Rd2 {[%emt 0:01:20]} Rc8 {[%emt 0:02:09]} 52. Nd4 {[%emt 0:02:06]} Re8 {[%emt 0:02:25]} 53. Re5 {[%emt 0:00:41]} b5 {[%emt 0:00:25]} 54. Kc1 {[%emt 0:00:31]} b4 {[%emt 0:02:49]} 55. cxb4 {[%emt 0:00:28]} axb4 {[%emt 0:00:05]} 56. axb4 {[%emt 0:00:04]} Rxb4 {[%emt 0:00:06]} 57. Rb2 {[%emt 0:00:10]} Rxb2 {[%emt 0:02:27]} 58. Kxb2 {[%emt 0:00:02]} Ba6 {[%emt 0:00:18]} 59. Kc2 {[%emt 0:02:43]} Bc8 {[%emt 0:01:27]} 60. Re3 {[%emt 0:01:15]} Bd7 {[%emt 0:00:14]} 61. Rb3 {[%emt 0:00:42]} e5 {[%emt 0:01:25]} 62. fxe5+ {[%emt 0:00:26]} Rxe5 {[%emt 0:03:18]} 63. Kd2 {[%emt 0:00:29]} Re4 {[%emt 0:00:48]} 64. Ne2 {[%emt 0:00:23]} Bg4 {[%emt 0:00:59]} 65. Nf4 {[%emt 0:00:52]} g5 {[%emt 0:00:11]} 66. hxg5 {[%emt 0:00:08]} hxg5 {[%emt 0:00:02]} 67. Nd3 {[%emt 0:00:55]} d4 {[%emt 0:03:12]} 68. Rb5 {[%emt 0:00:22]} Re2+ {[%emt 0:01:38]} 69. Kc1 {[%emt 0:00:04]} Re3 {[%emt 0:01:15]} 70. Rxg5 {[%emt 0:00:16]} Rxg3 {[%emt 0:00:43]} 71. Nf2 {[%emt 0:00:30]} Rc3+ {[%emt 0:00:31]} 72. Kd2 {[%emt 0:00:18]} Bf3 {[%emt 0:00:05]} 73. Nd3 {[%emt 0:00:32]} Be4 {[%emt 0:00:36]} 74. Ne1 {[%emt 0:00:59]} Ra3 {[%emt 0:00:28]} 75. Rb5 {[%emt 0:00:53]} Ra2+ {[%emt 0:00:08]} 76. Kd1 {[%emt 0:00:31]} Bd5 {[%emt 0:02:28]} 77. Nc2 {[%emt 0:00:35]} d3 {[%emt 0:00:28]} 78. Rxd5+ {[%emt 0:00:05]} Kxd5 {[%emt 0:01:32]} 79. Nb4+ {[%emt 0:00:04]} Ke6 {[%emt 0:00:11]} 80. Nxa2 {[%emt 0:00:06]} d2 {[%emt 0:00:05]} 81. Kxd2 {[%emt 0:00:05]} 1/2-1/2

[Event "LEM Sachsen-Anhalt Masters 2024"]
[Site "Merseburg"]
[Date "2024.02.11"]
[Round "7.4"]
[White "Haubold, Christian"]
[Black "Reipsch, Jens"]
[Result "1-0"]
[ECO "C70"]
[WhiteElo "1990"]
[BlackElo "2225"]
[Annotator "TA"]
[PlyCount "29"]
[EventDate "2024.02.01"]
[EventType "swiss"]
[EventCountry "GER"]
[SourceTitle "playchess.com"]
[Source "ChessBase"]
[SourceQuality "1"]
[TimeControl "40/5400+30:1800+30"]

{[%evp 9,29,40,52,22,40,49,59,29,83,61,91,96,98,100,114,113,179,166,157,164,625,625]} 1. e4 {[%emt 0:00:03]} e5 {[%emt 0:00:19]} 2. Nf3 {[%emt 0:00:09]} Nc6 {[%emt 0:00:07]} 3. Bb5 {[%emt 0:00:07]} a6 {[%emt 0:00:06]} 4. Ba4 {[%emt 0:00:07]} Nge7 {[%emt 0:00:05]} 5. c3 {[%emt 0:00:31]} g6 {[%emt 0:00:17]} 6. d4 {[%emt 0:00:42]} exd4 {[%emt 0:02:00]} 7. cxd4 {[%emt 0:00:10] Black must now prevent d5.} Bg7 {[%emt 0:00:13]} 8. d5 {[%emt 0:02:54] White is slightly better.} Nb8 {[%emt 0:01:47]} (8... Na5 $11 {remains equal.}) 9. O-O {[%emt 0:11:26]} O-O {[%emt 0:00:54]} 10. d6 {[%emt 0:18:24]} cxd6 {[%emt 0:00:30]} 11. Qxd6 {[%emt 0:00:37]} Nbc6 {[%emt 0:03:07]} 12. Nc3 {[%emt 0:04:06]} h6 {[%emt 0:02:56]} (12... b5 $16 {was called for.}) 13. Be3 $18 {[%emt 0:07:30]} b5 {[%emt 0:02:33]} 14. Bb3 {[%emt 0:01:17] White is much more active.} Na5 $2 {[%emt 0:02:05] [#]} (14... a5) 15. Bb6 {[%emt 0:00:49] Black got outplayed after the opening.   Weighted Error Value: White=0.03 (flawless) /Black=0.74.  Mistake:       	---       	Black=3      Inaccurate:     	---       	Black=1      OK:         	White=5     	Black=4      Best:        	White=1     	---} 1-0

[Event "LEM Sachsen-Anhalt Masters 2024"]
[Site "Merseburg"]
[Date "2024.02.11"]
[Round "7.5"]
[White "Polzin, Gustav"]
[Black "Daub, Sebastian"]
[Result "1/2-1/2"]
[ECO "B24"]
[WhiteElo "1895"]
[BlackElo "1967"]
[Annotator "NA RC"]
[PlyCount "133"]
[EventDate "2024.02.01"]
[EventType "swiss"]
[EventCountry "GER"]
[SourceTitle "playchess.com"]
[Source "ChessBase"]
[SourceQuality "1"]
[TimeControl "40/5400+30:1800+30"]

1. e4 {[%emt 0:00:02]} c5 {[%emt 0:00:32]} 2. Nc3 {[%emt 0:00:08]} g6 {[%emt 0:00:07]} 3. Nge2 {[%emt 0:00:12]} Bg7 {[%emt 0:00:08]} 4. d3 {[%emt 0:00:54]} Nc6 {[%emt 0:00:51]} 5. g3 {[%emt 0:00:33]} e6 {[%emt 0:01:18]} 6. Bg2 {[%emt 0:00:15]} Nge7 {[%emt 0:00:11]} 7. Be3 {[%emt 0:00:36]} b6 {[%emt 0:00:23]} 8. Qd2 {[%emt 0:00:25]} Nd4 {[%emt 0:02:26]} 9. O-O {[%emt 0:03:18]} Bb7 {[%emt 0:02:50]} 10. Bxd4 {[%emt 0:18:15]} cxd4 {[%emt 0:02:51]} 11. Nb5 {[%emt 0:00:07]} d5 {[%emt 0:00:31]} 12. f4 {[%emt 0:03:59]} dxe4 {[%emt 0:05:50]} 13. dxe4 {[%emt 0:01:05]} e5 {[%emt 0:04:41]} 14. Qb4 {[%emt 0:14:40]} O-O {[%emt 0:06:08]} 15. Nd6 {[%emt 0:01:47]} Bc6 {[%emt 0:01:36]} 16. Nc1 {[%emt 0:04:45]} a5 {[%emt 0:01:47]} 17. Qa3 {[%emt 0:02:44]} b5 {[%emt 0:01:51]} 18. Qc5 {[%emt 0:02:47]} exf4 {[%emt 0:01:47]} 19. gxf4 {[%emt 0:01:05]} Rb8 {[%emt 0:03:24]} 20. Nd3 {[%emt 0:03:37]} Qb6 {[%emt 0:01:15]} 21. Qxb6 {[%emt 0:02:43]} Rxb6 {[%emt 0:00:01]} 22. Rad1 {[%emt 0:01:40]} Nf5 {[%emt 0:05:05]} 23. Nxf5 {[%emt 0:00:57]} gxf5 {[%emt 0:00:35]} 24. e5 {[%emt 0:01:10]} Bxg2 {[%emt 0:00:21]} 25. Kxg2 {[%emt 0:00:02]} f6 {[%emt 0:00:31]} 26. Rfe1 {[%emt 0:00:56]} fxe5 {[%emt 0:00:16]} 27. Nxe5 {[%emt 0:00:43]} Rc8 {[%emt 0:07:29]} 28. Re2 {[%emt 0:01:22]} Bxe5 {[%emt 0:00:37]} 29. fxe5 {[%emt 0:00:15]} Rbc6 {[%emt 0:00:58]} 30. Rdd2 {[%emt 0:00:23]} Kf7 {[%emt 0:01:07]} 31. Kf3 {[%emt 0:00:36]} Ke6 {[%emt 0:02:03]} 32. h4 {[%emt 0:13:41]} Rc5 {[%emt 0:02:40]} 33. Rxd4 {[%emt 0:07:22]} Rxe5 {[%emt 0:02:52]} 34. Red2 {[%emt 0:00:21]} Rec5 {[%emt 0:05:20]} 35. c3 {[%emt 0:00:26]} R8c7 {[%emt 0:10:17]} 36. Kf4 {[%emt 0:03:16]} Rc4 {[%emt 0:02:53]} 37. Re2+ {[%emt 0:00:35]} Kf6 {[%emt 0:00:42]} 38. Re5 {[%emt 0:00:30]} R7c5 {[%emt 0:02:00]} 39. Rxc5 {[%emt 0:02:30]} Rxc5 {[%emt 0:00:10]} 40. Rd6+ {[%emt 0:00:24]} Kg7 {[%emt 0:05:44]} 41. Rb6 {[%emt 0:13:30]} a4 {[%emt 0:04:18]} 42. a3 {[%emt 0:01:24]} Rc4+ {[%emt 0:27:42]} 43. Kxf5 {[%emt 0:00:15]} Rxh4 {[%emt 0:00:12]} 44. Kg5 {[%emt 0:00:08]} Rh2 {[%emt 0:00:41]} 45. Rxb5 {[%emt 0:00:31]} Kf7 {[%emt 0:00:52]} 46. Rb6 {[%emt 0:02:49]} Ke7 {[%emt 0:01:10]} 47. Kg4 {[%emt 0:00:13]} Kf7 {[%emt 0:03:44]} 48. Kg3 {[%emt 0:00:11]} Rh5 {[%emt 0:00:15]} 49. Rb4 {[%emt 0:00:18]} Ra5 {[%emt 0:00:05]} 50. Kg4 {[%emt 0:00:34]} Kf6 {[%emt 0:00:18]} 51. Kh4 {[%emt 0:01:05]} Kg6 {[%emt 0:01:29]} 52. c4 {[%emt 0:00:36]} Rh5+ {[%emt 0:03:26]} 53. Kg3 {[%emt 0:00:18]} Rg5+ {[%emt 0:00:05]} 54. Kf3 {[%emt 0:00:21]} Rf5+ {[%emt 0:00:03]} 55. Ke4 {[%emt 0:00:57]} h5 {[%emt 0:00:46]} 56. Rb6+ {[%emt 0:01:39]} Rf6 {[%emt 0:03:44]} 57. c5 {[%emt 0:01:13]} h4 {[%emt 0:00:18]} 58. c6 {[%emt 0:00:42]} h3 {[%emt 0:00:15]} 59. c7 {[%emt 0:01:18]} h2 {[%emt 0:00:02]} 60. Rxf6+ {[%emt 0:01:07]} Kxf6 {[%emt 0:00:02]} 61. c8=Q {[%emt 0:00:47]} h1=Q+ {[%emt 0:09:25]} 62. Kf4 {[%emt 0:20:28]} Qf1+ {[%emt 0:00:00]} 63. Kg3 {[%emt 0:00:00]} Qg1+ {[%emt 0:00:00]} 64. Kh3 {[%emt 0:00:00]} Qh1+ {[%emt 0:00:00]} 65. Kg4 {[%emt 0:00:00]} Qg2+ {[%emt 0:00:00]} 66. Kh4 {[%emt 0:00:00]} Qh2+ {[%emt 0:00:00]} 67. Kg4 {[%emt 0:00:00]} 1/2-1/2

[Event "LEM Sachsen-Anhalt Masters 2024"]
[Site "Merseburg"]
[Date "2024.02.11"]
[Round "7.6"]
[White "Lippert, Daniel"]
[Black "Schulz, Maximilian"]
[Result "1-0"]
[ECO "B05"]
[WhiteElo "2034"]
[BlackElo "1896"]
[Annotator "NA RC"]
[PlyCount "55"]
[EventDate "2024.02.01"]
[EventType "swiss"]
[EventCountry "GER"]
[SourceTitle "playchess.com"]
[Source "ChessBase"]
[SourceQuality "1"]
[TimeControl "40/5400+30:1800+30"]

1. e4 {[%emt 0:05:18]} Nf6 {[%emt 0:00:08]} 2. e5 {[%emt 0:01:34]} Nd5 {[%emt 0:00:06]} 3. d4 {[%emt 0:00:05]} d6 {[%emt 0:00:03]} 4. Nf3 {[%emt 0:00:14]} Bg4 {[%emt 0:02:06]} 5. Bc4 {[%emt 0:07:54]} e6 {[%emt 0:02:34]} 6. h3 {[%emt 0:01:20]} Bh5 {[%emt 0:03:11]} 7. g4 {[%emt 0:08:23]} Bg6 {[%emt 0:00:05]} 8. Bxd5 {[%emt 0:10:06]} exd5 {[%emt 0:00:11]} 9. Qe2 {[%emt 0:00:03]} Be7 {[%emt 0:10:27]} 10. Nc3 {[%emt 0:01:50]} c6 {[%emt 0:04:55]} 11. Bf4 {[%emt 0:02:58]} dxe5 {[%emt 0:04:04]} 12. Nxe5 {[%emt 0:02:10]} f6 {[%emt 0:01:14]} 13. Nxg6 {[%emt 0:02:01]} hxg6 {[%emt 0:01:16]} 14. O-O-O {[%emt 0:00:29]} Kf7 {[%emt 0:00:49]} 15. h4 {[%emt 0:01:24]} Qd7 {[%emt 0:06:42]} 16. Qf3 {[%emt 0:08:40]} Na6 {[%emt 0:02:18]} 17. Ne2 {[%emt 0:01:36]} Nc7 {[%emt 0:02:51]} 18. h5 {[%emt 0:02:26]} Nb5 {[%emt 0:04:58]} 19. Qd3 {[%emt 0:09:42]} g5 {[%emt 0:11:25]} 20. Qg6+ {[%emt 0:01:39]} Kf8 {[%emt 0:04:04]} 21. h6 {[%emt 0:04:15]} gxh6 {[%emt 0:04:57]} 22. Bxg5 {[%emt 0:11:17]} fxg5 {[%emt 0:01:14]} 23. Rd3 {[%emt 0:00:20]} Qxg4 {[%emt 0:19:08]} 24. Rhh3 {[%emt 0:00:04]} Nxd4 {[%emt 0:00:16]} 25. Nxd4 {[%emt 0:01:12]} Bd6 {[%emt 0:03:55]} 26. Qxd6+ {[%emt 0:00:50]} Kg7 {[%emt 0:00:35]} 27. Ne6+ {[%emt 0:00:57]} Kg8 {[%emt 0:01:19]} 28. Rdf3 {[%emt 0:00:53]} 1-0

[Event "LEM Sachsen-Anhalt Masters 2024"]
[Site "Merseburg"]
[Date "2024.02.11"]
[Round "7.7"]
[White "Schellmann, Frank"]
[Black "Wenzel, Thomas"]
[Result "1-0"]
[ECO "C54"]
[WhiteElo "1923"]
[BlackElo "1747"]
[Annotator "NA RC"]
[PlyCount "39"]
[EventDate "2024.02.01"]
[EventType "swiss"]
[EventCountry "GER"]
[SourceTitle "playchess.com"]
[Source "ChessBase"]
[SourceQuality "1"]
[TimeControl "40/5400+30:1800+30"]

1. e4 {[%emt 1:31:00]} e5 2. Nf3 {[%emt 0:00:30]} Nc6 {[%emt 1:31:30]} 3. Bc4 {[%emt 0:00:30]} Nf6 {[%emt 0:00:30]} 4. d3 {[%emt 0:00:30]} Bc5 {[%emt 0:00:30]} 5. O-O {[%emt 0:00:30]} d6 {[%emt 0:00:30]} 6. c3 {[%emt 0:00:30]} Bg4 {[%emt 0:00:30]} 7. h3 {[%emt 0:00:30]} Bh5 {[%emt 0:00:30]} 8. Nbd2 {[%emt 0:00:30]} Qd7 {[%emt 0:00:30]} 9. b4 {[%emt 0:00:30]} Bb6 {[%emt 0:00:30]} 10. a4 {[%emt 0:00:30]} a6 {[%emt 0:00:30]} 11. a5 {[%emt 0:00:30]} Ba7 {[%emt 0:00:30]} 12. b5 {[%emt 0:00:30]} axb5 {[%emt 0:00:30]} 13. Bxb5 {[%emt 0:00:30]} g5 {[%emt 0:00:30]} 14. a6 {[%emt 0:00:30]} bxa6 {[%emt 0:00:30]} 15. Rxa6 {[%emt 0:00:30]} Bxf2+ {[%emt 0:00:30]} 16. Rxf2 {[%emt 0:00:30]} Rxa6 {[%emt 0:00:30]} 17. Bxa6 {[%emt 0:00:30]} Nb8 {[%emt 0:00:30]} 18. Bc4 {[%emt 0:00:30]} g4 19. Qb3 {[%emt 0:00:30]} Rg8 {[%emt 0:01:00]} 20. hxg4 {[%emt 0:00:30]} 1-0